[Event "Titled Tuesday Blitz February 07 Early 2023"]
[White "Mesa Cruz, Juan Carlos"]
[Black "EREBUNI91"]
[WhiteFideId "6423400"]
[WhiteElo "2122"]
[BlackElo "2666"]
[Result "0-1"]
[Round "04"]
[TimeControl "180+2"]
[Date "2023.02.07"]
[WhiteClock "0:00:38"]
[BlackClock "0:01:00"]

1. e4 {[%clk 0:03:00]}  c5 {[%clk 0:02:59]} 2. Nf3 {[%clk 0:03:00]}  d6 {[%clk 0:03:00]} 3. d4 {[%clk 0:03:00]}  cxd4 {[%clk 0:03:01]} 4. Nxd4 {[%clk 0:03:01]}  Nf6 {[%clk 0:03:01]} 5. Nc3 {[%clk 0:03:01]}  a6 {[%clk 0:03:02]} 6. Bg5 {[%clk 0:03:01]}  Nbd7 {[%clk 0:03:02]} 7. f4 {[%clk 0:03:01]}  Qc7 {[%clk 0:03:02]} 8. Qf3 {[%clk 0:03:00]}  h6 {[%clk 0:03:02]} 9. Bh4 {[%clk 0:03:00]}  g5 {[%clk 0:03:03]} 10. fxg5 {[%clk 0:02:57]}  hxg5 {[%clk 0:03:03]} 11. Bxg5 {[%clk 0:02:55]}  Qc5 {[%clk 0:03:04]} 12. Qe3 {[%clk 0:02:47]}  Ng4 {[%clk 0:02:48]} 13. Qd2 {[%clk 0:02:47]}  Bg7 {[%clk 0:02:48]} 14. Nf5 {[%clk 0:02:25]}  Bxc3 {[%clk 0:02:42]} 15. bxc3 {[%clk 0:02:21]}  Ndf6 {[%clk 0:02:35]} 16. Bd3 {[%clk 0:01:58]}  Bxf5 {[%clk 0:02:25]} 17. exf5 {[%clk 0:01:59]}  Rxh2 {[%clk 0:02:19]} 18. Rxh2 {[%clk 0:01:51]}  Qg1+ {[%clk 0:02:17]} 19. Bf1 {[%clk 0:01:49]}  Nxh2 {[%clk 0:02:13]} 20. O-O-O {[%clk 0:01:36]}  Nxf1 {[%clk 0:02:01]} 21. Qe1 {[%clk 0:01:26]}  Kd7 {[%clk 0:01:54]} 22. Bxf6 {[%clk 0:01:22]}  Qe3+ {[%clk 0:01:53]} 23. Qxe3 {[%clk 0:01:20]}  Nxe3 {[%clk 0:01:54]} 24. Re1 {[%clk 0:01:20]}  Nxf5 {[%clk 0:01:50]} 25. Bd4 {[%clk 0:01:14]}  Rg8 {[%clk 0:01:48]} 26. Re2 {[%clk 0:01:13]}  Nh4 {[%clk 0:01:45]} 27. Rf2 {[%clk 0:01:05]}  f6 {[%clk 0:01:43]} 28. a4 {[%clk 0:01:02]}  Rxg2 {[%clk 0:01:41]} 29. Rf4 {[%clk 0:01:02]}  Ng6 {[%clk 0:01:40]} 30. Re4 {[%clk 0:01:02]}  e5 {[%clk 0:01:40]} 31. Be3 {[%clk 0:01:01]}  f5 {[%clk 0:01:40]} 32. Rb4 {[%clk 0:01:01]}  Kc7 {[%clk 0:01:39]} 33. Rc4+ {[%clk 0:01:01]}  Kd7 {[%clk 0:01:37]} 34. Bb6 {[%clk 0:01:01]}  f4 {[%clk 0:01:35]} 35. Rc7+ {[%clk 0:01:01]}  Ke6 {[%clk 0:01:33]} 36. Rxb7 {[%clk 0:01:01]}  f3 {[%clk 0:01:23]} 37. Rg7 {[%clk 0:00:59]}  Kf6 {[%clk 0:01:21]} 38. Rg8 {[%clk 0:00:57]}  f2 {[%clk 0:01:16]} 39. Bxf2 {[%clk 0:00:57]}  Rxf2 {[%clk 0:01:17]} 40. Ra8 {[%clk 0:00:57]}  e4 {[%clk 0:01:13]} 41. Rxa6 {[%clk 0:00:58]}  Ke6 {[%clk 0:01:13]} 42. Ra8 {[%clk 0:00:56]}  e3 {[%clk 0:01:13]} 43. Kd1 {[%clk 0:00:55]}  Ne5 {[%clk 0:01:09]} 44. a5 {[%clk 0:00:54]}  Rd2+ {[%clk 0:01:06]} 45. Kc1 {[%clk 0:00:52]}  Rh2 {[%clk 0:01:05]} 46. Kd1 {[%clk 0:00:50]}  e2+ {[%clk 0:01:04]} 47. Kd2 {[%clk 0:00:41]}  Nf3+ {[%clk 0:01:03]} 48. Kc1 {[%clk 0:00:41]}  e1=Q+ {[%clk 0:01:03]} 49. Kb2 {[%clk 0:00:41]}  Kd5 {[%clk 0:01:02]} 50. a6 {[%clk 0:00:41]}  Qd2 {[%clk 0:01:00]} 51. Rc8 {[%clk 0:00:38]}  Qxc2+ {[%clk 0:01:00]} 52. Ka3 {[%clk 0:00:38]}  Qa2+ {[%clk 0:01:00]} 0-1


[Site "https://www.chess.com"]

[Event "Titled Tuesday Blitz February 07 Early 2023"]
[White "I_KID_you_not"]
[Black "Kuderinov, Kirill"]
[BlackFideId "13701568"]
[WhiteElo "2342"]
[BlackElo "2404"]
[Result "0-1"]
[Round "04"]
[TimeControl "180+2"]
[Date "2023.02.07"]
[WhiteClock "0:00:01"]
[BlackClock "0:00:06"]

1. e4 {[%clk 0:03:00]}  c5 {[%clk 0:02:59]} 2. Nc3 {[%clk 0:03:01]}  Nc6 {[%clk 0:02:59]} 3. Bb5 {[%clk 0:03:01]}  g6 {[%clk 0:02:57]} 4. Bxc6 {[%clk 0:03:01]}  dxc6 {[%clk 0:02:58]} 5. d3 {[%clk 0:03:01]}  Bg7 {[%clk 0:02:59]} 6. f4 {[%clk 0:02:59]}  Nf6 {[%clk 0:02:57]} 7. Nf3 {[%clk 0:02:59]}  O-O {[%clk 0:02:57]} 8. O-O {[%clk 0:02:58]}  Nd7 {[%clk 0:02:55]} 9. Kh1 {[%clk 0:02:54]}  Re8 {[%clk 0:02:54]} 10. Be3 {[%clk 0:02:46]}  b6 {[%clk 0:02:51]} 11. Qe1 {[%clk 0:02:46]}  Nf8 {[%clk 0:02:42]} 12. Qh4 {[%clk 0:02:40]}  f6 {[%clk 0:02:38]} 13. e5 {[%clk 0:02:04]}  Ne6 {[%clk 0:02:29]} 14. f5 {[%clk 0:01:44]}  gxf5 {[%clk 0:02:18]} 15. Bh6 {[%clk 0:01:45]}  fxe5 {[%clk 0:01:54]} 16. Bxg7 {[%clk 0:01:41]}  Nxg7 {[%clk 0:01:55]} 17. Nxe5 {[%clk 0:01:29]}  e6 {[%clk 0:01:23]} 18. Qh6 {[%clk 0:01:00]}  Rf8 {[%clk 0:01:06]} 19. Rae1 {[%clk 0:00:44]}  Qf6 {[%clk 0:00:57]} 20. Qxf6 {[%clk 0:00:35]}  Rxf6 {[%clk 0:00:57]} 21. Nxc6 {[%clk 0:00:36]}  Bb7 {[%clk 0:00:54]} 22. Ne5 {[%clk 0:00:33]}  Rd8 {[%clk 0:00:50]} 23. Kg1 {[%clk 0:00:31]}  Rff8 {[%clk 0:00:46]} 24. Re2 {[%clk 0:00:21]}  a6 {[%clk 0:00:45]} 25. a4 {[%clk 0:00:20]}  Rd4 {[%clk 0:00:45]} 26. Rfe1 {[%clk 0:00:19]}  f4 {[%clk 0:00:41]} 27. Nf3 {[%clk 0:00:18]}  Bxf3 {[%clk 0:00:41]} 28. gxf3 {[%clk 0:00:18]}  Rf6 {[%clk 0:00:34]} 29. Kf2 {[%clk 0:00:16]}  Rh6 {[%clk 0:00:31]} 30. Rh1 {[%clk 0:00:15]}  Nf5 {[%clk 0:00:31]} 31. Rg1+ {[%clk 0:00:10]}  Kf7 {[%clk 0:00:31]} 32. Kg2 {[%clk 0:00:05]}  Ne3+ {[%clk 0:00:23]} 33. Kh1 {[%clk 0:00:05]}  Rh3 {[%clk 0:00:21]} 34. Nd1 {[%clk 0:00:02]}  Nf5 {[%clk 0:00:16]} 35. Rf2 {[%clk 0:00:01]}  Ng3+ {[%clk 0:00:15]} 36. Kg2 {[%clk 0:00:02]}  Rh5 {[%clk 0:00:11]} 37. hxg3 {[%clk 0:00:02]}  fxg3 {[%clk 0:00:12]} 38. Re2 {[%clk 0:00:01]}  Rxa4 {[%clk 0:00:06]} 0-1


[Site "https://www.chess.com"]

[Event "Titled Tuesday Blitz February 07 Early 2023"]
[White "Kvaloy, Aksel Bu"]
[Black "Perez Rodriguez, Jennifer"]
[WhiteFideId "1528815"]
[BlackFideId "3507831"]
[WhiteElo "2321"]
[BlackElo "2242"]
[Result "1/2-1/2"]
[Round "04"]
[TimeControl "180+2"]
[Date "2023.02.07"]
[WhiteClock "0:00:16"]
[BlackClock "0:00:06"]

1. d4 {[%clk 0:03:00]}  d5 {[%clk 0:02:33]} 2. c4 {[%clk 0:02:59]}  c6 {[%clk 0:02:33]} 3. Nf3 {[%clk 0:02:57]}  Nf6 {[%clk 0:02:30]} 4. Qc2 {[%clk 0:02:56]}  e6 {[%clk 0:02:29]} 5. g3 {[%clk 0:02:53]}  Nbd7 {[%clk 0:02:29]} 6. Bg2 {[%clk 0:02:53]}  Bd6 {[%clk 0:02:28]} 7. O-O {[%clk 0:02:52]}  O-O {[%clk 0:02:29]} 8. Nbd2 {[%clk 0:02:51]}  e5 {[%clk 0:02:27]} 9. dxe5 {[%clk 0:02:49]}  Nxe5 {[%clk 0:02:27]} 10. Nxe5 {[%clk 0:02:50]}  Bxe5 {[%clk 0:02:27]} 11. Nf3 {[%clk 0:02:49]}  Bd6 {[%clk 0:02:27]} 12. Rd1 {[%clk 0:02:43]}  Qe7 {[%clk 0:02:17]} 13. Bg5 {[%clk 0:02:28]}  dxc4 {[%clk 0:02:15]} 14. Nd2 {[%clk 0:02:26]}  h6 {[%clk 0:02:04]} 15. Bxf6 {[%clk 0:02:26]}  gxf6 {[%clk 0:01:54]} 16. Nxc4 {[%clk 0:02:25]}  Bc7 {[%clk 0:01:52]} 17. Ne3 {[%clk 0:02:16]}  Qe5 {[%clk 0:01:46]} 18. Bf3 {[%clk 0:02:00]}  Be6 {[%clk 0:01:43]} 19. Ng4 {[%clk 0:01:46]}  Qg5 {[%clk 0:01:28]} 20. h4 {[%clk 0:01:33]}  Qg6 {[%clk 0:01:27]} 21. Qxg6+ {[%clk 0:01:18]}  fxg6 {[%clk 0:01:28]} 22. Nxh6+ {[%clk 0:01:18]}  Kg7 {[%clk 0:01:28]} 23. Ng4 {[%clk 0:01:19]}  Bxg4 {[%clk 0:01:26]} 24. Bxg4 {[%clk 0:01:18]}  f5 {[%clk 0:01:26]} 25. Bf3 {[%clk 0:01:16]}  Rad8 {[%clk 0:01:25]} 26. e3 {[%clk 0:01:14]}  Be5 {[%clk 0:01:22]} 27. Rab1 {[%clk 0:01:03]}  Rxd1+ {[%clk 0:01:17]} 28. Rxd1 {[%clk 0:01:04]}  Rf7 {[%clk 0:01:13]} 29. b3 {[%clk 0:01:01]}  Kf6 {[%clk 0:01:12]} 30. Kf1 {[%clk 0:01:01]}  Re7 {[%clk 0:01:02]} 31. Ke2 {[%clk 0:01:00]}  Ke6 {[%clk 0:01:01]} 32. h5 {[%clk 0:00:39]}  gxh5 {[%clk 0:00:57]} 33. Bxh5 {[%clk 0:00:40]}  Rh7 {[%clk 0:00:53]} 34. Bf3 {[%clk 0:00:34]}  Rh2 {[%clk 0:00:52]} 35. Kf1 {[%clk 0:00:31]}  Rh8 {[%clk 0:00:44]} 36. Kg2 {[%clk 0:00:26]}  Rc8 {[%clk 0:00:39]} 37. Be2 {[%clk 0:00:26]}  Rc7 {[%clk 0:00:37]} 38. Bc4+ {[%clk 0:00:25]}  Kf6 {[%clk 0:00:38]} 39. f4 {[%clk 0:00:25]}  Bc3 {[%clk 0:00:37]} 40. Rd6+ {[%clk 0:00:21]}  Ke7 {[%clk 0:00:37]} 41. Re6+ {[%clk 0:00:21]}  Kd8 {[%clk 0:00:36]} 42. Rh6 {[%clk 0:00:16]}  Re7 {[%clk 0:00:30]} 43. Kf3 {[%clk 0:00:15]}  Bd2 {[%clk 0:00:30]} 44. Re6 {[%clk 0:00:15]}  Rg7 {[%clk 0:00:25]} 45. Re5 {[%clk 0:00:08]}  Be1 {[%clk 0:00:23]} 46. Rxf5 {[%clk 0:00:08]}  Rxg3+ {[%clk 0:00:22]} 47. Ke2 {[%clk 0:00:08]}  Bc3 {[%clk 0:00:22]} 48. Rf8+ {[%clk 0:00:08]}  Kc7 {[%clk 0:00:21]} 49. Rf7+ {[%clk 0:00:09]}  Kb6 {[%clk 0:00:20]} 50. Kd3 {[%clk 0:00:09]}  Bb2 {[%clk 0:00:19]} 51. f5 {[%clk 0:00:05]}  Bc1 {[%clk 0:00:20]} 52. Re7 {[%clk 0:00:06]}  Rf3 {[%clk 0:00:18]} 53. Re5 {[%clk 0:00:06]}  Kc7 {[%clk 0:00:17]} 54. Re7+ {[%clk 0:00:04]}  Kd6 {[%clk 0:00:17]} 55. Re6+ {[%clk 0:00:04]}  Kd7 {[%clk 0:00:16]} 56. f6 {[%clk 0:00:05]}  b5 {[%clk 0:00:16]} 57. Re7+ {[%clk 0:00:05]}  Kd8 {[%clk 0:00:15]} 58. Bg8 {[%clk 0:00:03]}  Rxf6 {[%clk 0:00:16]} 59. Rxa7 {[%clk 0:00:03]}  Rd6+ {[%clk 0:00:16]} 60. Ke2 {[%clk 0:00:02]}  Rg6 {[%clk 0:00:14]} 61. Bh7 {[%clk 0:00:02]}  Re6 {[%clk 0:00:14]} 62. e4 {[%clk 0:00:02]}  Bb2 {[%clk 0:00:13]} 63. Bf5 {[%clk 0:00:02]}  Re7 {[%clk 0:00:13]} 64. Ra8+ {[%clk 0:00:02]}  Kc7 {[%clk 0:00:13]} 65. Kd3 {[%clk 0:00:03]}  Be5 {[%clk 0:00:13]} 66. Ra7+ {[%clk 0:00:03]}  Kd6 {[%clk 0:00:13]} 67. Ra8 {[%clk 0:00:04]}  Kc5 {[%clk 0:00:13]} 68. Rd8 {[%clk 0:00:04]}  Ra7 {[%clk 0:00:12]} 69. a4 {[%clk 0:00:02]}  bxa4 {[%clk 0:00:12]} 70. bxa4 {[%clk 0:00:03]}  Rxa4 {[%clk 0:00:12]} 71. Re8 {[%clk 0:00:04]}  Rd4+ {[%clk 0:00:12]} 72. Ke2 {[%clk 0:00:04]}  Bd6 {[%clk 0:00:12]} 73. e5 {[%clk 0:00:05]}  Rd5 {[%clk 0:00:10]} 74. exd6 {[%clk 0:00:04]}  Kxd6 {[%clk 0:00:09]} 75. Rf8 {[%clk 0:00:03]}  Re5+ {[%clk 0:00:09]} 76. Kd3 {[%clk 0:00:03]}  Ke7 {[%clk 0:00:09]} 77. Rc8 {[%clk 0:00:02]}  Rxf5 {[%clk 0:00:09]} 78. Rxc6 {[%clk 0:00:02]}  Rf6 {[%clk 0:00:10]} 79. Rc4 {[%clk 0:00:02]}  Rd6+ {[%clk 0:00:10]} 80. Ke3 {[%clk 0:00:02]}  Re6+ {[%clk 0:00:10]} 81. Kf4 {[%clk 0:00:03]}  Rf6+ {[%clk 0:00:10]} 82. Kg5 {[%clk 0:00:04]}  Rf1 {[%clk 0:00:10]} 83. Ra4 {[%clk 0:00:05]}  Kd6 {[%clk 0:00:11]} 84. Ra7 {[%clk 0:00:05]}  Rg1+ {[%clk 0:00:11]} 85. Kf5 {[%clk 0:00:05]}  Rf1+ {[%clk 0:00:12]} 86. Ke4 {[%clk 0:00:06]}  Re1+ {[%clk 0:00:12]} 87. Kd3 {[%clk 0:00:06]}  Rd1+ {[%clk 0:00:13]} 88. Ke2 {[%clk 0:00:07]}  Rg1 {[%clk 0:00:13]} 89. Ra6+ {[%clk 0:00:08]}  Kc5 {[%clk 0:00:12]} 90. Kf2 {[%clk 0:00:09]}  Rb1 {[%clk 0:00:11]} 91. Rh6 {[%clk 0:00:09]}  Rb2+ {[%clk 0:00:12]} 92. Ke3 {[%clk 0:00:09]}  Rb3+ {[%clk 0:00:12]} 93. Ke4 {[%clk 0:00:10]}  Rb4+ {[%clk 0:00:12]} 94. Ke5 {[%clk 0:00:10]}  Rb6 {[%clk 0:00:10]} 95. Rh8 {[%clk 0:00:10]}  Kc4 {[%clk 0:00:08]} 96. Rh4+ {[%clk 0:00:10]}  Kd3 {[%clk 0:00:08]} 97. Rh3+ {[%clk 0:00:10]}  Ke2 {[%clk 0:00:08]} 98. Ra3 {[%clk 0:00:09]}  Rb5+ {[%clk 0:00:07]} 99. Kf4 {[%clk 0:00:09]}  Rb4+ {[%clk 0:00:07]} 100. Kg3 {[%clk 0:00:10]}  Kd2 {[%clk 0:00:06]} 101. Ra2+ {[%clk 0:00:10]}  Kc3 {[%clk 0:00:06]} 102. Rf2 {[%clk 0:00:11]}  Rb3 {[%clk 0:00:06]} 103. Kf4 {[%clk 0:00:11]}  Rb4+ {[%clk 0:00:05]} 104. Ke3 {[%clk 0:00:11]}  Rb1 {[%clk 0:00:03]} 105. Rf8 {[%clk 0:00:11]}  Re1+ {[%clk 0:00:03]} 106. Kf2 {[%clk 0:00:12]}  Rd1 {[%clk 0:00:03]} 107. Ke2 {[%clk 0:00:12]}  Rd2+ {[%clk 0:00:03]} 108. Ke1 {[%clk 0:00:13]}  Rd5 {[%clk 0:00:03]} 109. Rc8+ {[%clk 0:00:13]}  Kd4 {[%clk 0:00:04]} 110. Kd2 {[%clk 0:00:13]}  Ke5+ {[%clk 0:00:05]} 111. Ke3 {[%clk 0:00:13]}  Kd6 {[%clk 0:00:05]} 112. Ke4 {[%clk 0:00:12]}  Re5+ {[%clk 0:00:05]} 113. Kf4 {[%clk 0:00:13]}  Rd5 {[%clk 0:00:05]} 114. Rd8+ {[%clk 0:00:13]}  Kc5 {[%clk 0:00:05]} 115. Rh8 {[%clk 0:00:14]}  Rd4+ {[%clk 0:00:05]} 116. Ke3 {[%clk 0:00:15]}  Rd6 {[%clk 0:00:05]} 117. Rc8+ {[%clk 0:00:15]}  Kd5 {[%clk 0:00:05]} 118. Rh8 {[%clk 0:00:16]}  Kc5 {[%clk 0:00:06]} 119. Ke4 {[%clk 0:00:16]}  Rd4+ {[%clk 0:00:06]} 120. Ke3 {[%clk 0:00:16]}  Rd6 {[%clk 0:00:06]} 1/2-1/2


[Site "https://www.chess.com"]

[Event "Titled Tuesday Blitz February 07 Early 2023"]
[White "SicilianPanzer"]
[Black "Arenas, David"]
[BlackFideId "4403177"]
[WhiteElo "2245"]
[BlackElo "2426"]
[Result "1-0"]
[Round "04"]
[TimeControl "180+2"]
[Date "2023.02.07"]
[WhiteClock "0:00:04"]
[BlackClock "0:00:32"]

1. e4 {[%clk 0:03:00]}  c5 {[%clk 0:02:58]} 2. Nc3 {[%clk 0:02:57]}  d6 {[%clk 0:02:58]} 3. d4 {[%clk 0:02:57]}  cxd4 {[%clk 0:02:58]} 4. Qxd4 {[%clk 0:02:57]}  Nc6 {[%clk 0:02:59]} 5. Qd2 {[%clk 0:02:56]}  g6 {[%clk 0:02:58]} 6. b3 {[%clk 0:02:56]}  Bh6 {[%clk 0:02:57]} 7. f4 {[%clk 0:02:56]}  f5 {[%clk 0:02:37]} 8. Bb2 {[%clk 0:02:52]}  Nf6 {[%clk 0:02:36]} 9. O-O-O {[%clk 0:02:49]}  fxe4 {[%clk 0:02:34]} 10. g3 {[%clk 0:02:48]}  Bg4 {[%clk 0:01:54]} 11. Re1 {[%clk 0:02:42]}  d5 {[%clk 0:01:48]} 12. Nxd5 {[%clk 0:01:56]}  O-O {[%clk 0:01:35]} 13. Bc4 {[%clk 0:01:37]}  Kg7 {[%clk 0:01:26]} 14. Rxe4 {[%clk 0:01:14]}  Kh8 {[%clk 0:01:16]} 15. h3 {[%clk 0:00:17]}  Bf5 {[%clk 0:01:14]} 16. Re2 {[%clk 0:00:17]}  Bg7 {[%clk 0:01:14]} 17. Nxf6 {[%clk 0:00:16]}  exf6 {[%clk 0:01:10]} 18. Nf3 {[%clk 0:00:15]}  Qxd2+ {[%clk 0:00:59]} 19. Rxd2 {[%clk 0:00:15]}  Be4 {[%clk 0:00:59]} 20. Bd5 {[%clk 0:00:14]}  f5 {[%clk 0:00:55]} 21. Bxg7+ {[%clk 0:00:12]}  Kxg7 {[%clk 0:00:54]} 22. Re1 {[%clk 0:00:11]}  Bxd5 {[%clk 0:00:49]} 23. Rxd5 {[%clk 0:00:10]}  Rf7 {[%clk 0:00:49]} 24. Ng5 {[%clk 0:00:07]}  Re7 {[%clk 0:00:40]} 25. Rxe7+ {[%clk 0:00:06]}  Nxe7 {[%clk 0:00:40]} 26. Rd7 {[%clk 0:00:07]}  Kf6 {[%clk 0:00:40]} 27. Nxh7+ {[%clk 0:00:05]}  Ke6 {[%clk 0:00:40]} 28. Rxb7 {[%clk 0:00:06]}  a5 {[%clk 0:00:36]} 29. a4 {[%clk 0:00:05]}  Rd8 {[%clk 0:00:35]} 30. Ng5+ {[%clk 0:00:05]}  Kf6 {[%clk 0:00:34]} 31. Rb6+ {[%clk 0:00:04]}  Kg7 {[%clk 0:00:32]} 32. Ne6+ {[%clk 0:00:04]} 1-0


[Site "https://www.chess.com"]

[Event "Titled Tuesday Blitz February 07 Early 2023"]
[White "Tobares, Leandro"]
[Black "Sekar, B"]
[WhiteFideId "106402"]
[BlackFideId "5043743"]
[WhiteElo "2189"]
[BlackElo "2333"]
[Result "1-0"]
[Round "04"]
[TimeControl "180+2"]
[Date "2023.02.07"]
[WhiteClock "0:00:09"]
[BlackClock "0:00:01"]

1. d4 {[%clk 0:03:00]}  Nf6 {[%clk 0:02:17]} 2. c4 {[%clk 0:02:59]}  e6 {[%clk 0:02:17]} 3. Nf3 {[%clk 0:02:57]}  d5 {[%clk 0:02:18]} 4. Nc3 {[%clk 0:02:56]}  Bb4 {[%clk 0:02:17]} 5. cxd5 {[%clk 0:02:52]}  exd5 {[%clk 0:02:16]} 6. Bg5 {[%clk 0:02:52]}  h6 {[%clk 0:02:17]} 7. Bxf6 {[%clk 0:02:49]}  Qxf6 {[%clk 0:02:18]} 8. e3 {[%clk 0:02:48]}  O-O {[%clk 0:02:08]} 9. Qb3 {[%clk 0:02:46]}  Bxc3+ {[%clk 0:02:03]} 10. bxc3 {[%clk 0:02:45]}  c6 {[%clk 0:02:00]} 11. Bd3 {[%clk 0:02:37]}  Nd7 {[%clk 0:01:48]} 12. O-O {[%clk 0:02:34]}  Rb8 {[%clk 0:01:46]} 13. Qa3 {[%clk 0:02:29]}  a6 {[%clk 0:01:45]} 14. Rab1 {[%clk 0:02:28]}  Re8 {[%clk 0:01:38]} 15. c4 {[%clk 0:02:19]}  dxc4 {[%clk 0:01:26]} 16. Bxc4 {[%clk 0:02:17]}  Qg6 {[%clk 0:01:26]} 17. Qb3 {[%clk 0:02:04]}  Rf8 {[%clk 0:01:12]} 18. Kh1 {[%clk 0:01:59]}  b5 {[%clk 0:01:05]} 19. Bd3 {[%clk 0:01:57]}  Qd6 {[%clk 0:01:02]} 20. Qc2 {[%clk 0:01:51]}  c5 {[%clk 0:01:01]} 21. Rfd1 {[%clk 0:01:45]}  c4 {[%clk 0:00:57]} 22. Bf5 {[%clk 0:01:44]}  Nb6 {[%clk 0:00:56]} 23. Ne5 {[%clk 0:01:39]}  g6 {[%clk 0:00:41]} 24. Be4 {[%clk 0:01:28]}  Bb7 {[%clk 0:00:27]} 25. f4 {[%clk 0:01:16]}  Bxe4 {[%clk 0:00:26]} 26. Qxe4 {[%clk 0:01:16]}  Qd5 {[%clk 0:00:27]} 27. Qc2 {[%clk 0:01:08]}  Rfc8 {[%clk 0:00:20]} 28. Nxg6 {[%clk 0:01:05]}  fxg6 {[%clk 0:00:18]} 29. Qxg6+ {[%clk 0:01:03]}  Kf8 {[%clk 0:00:18]} 30. Qxh6+ {[%clk 0:01:03]}  Ke7 {[%clk 0:00:19]} 31. e4 {[%clk 0:01:00]}  Qf7 {[%clk 0:00:16]} 32. d5 {[%clk 0:00:56]}  c3 {[%clk 0:00:15]} 33. e5 {[%clk 0:00:49]}  Rd8 {[%clk 0:00:09]} 34. d6+ {[%clk 0:00:45]}  Kd7 {[%clk 0:00:09]} 35. Rbc1 {[%clk 0:00:42]}  Rbc8 {[%clk 0:00:09]} 36. Rf1 {[%clk 0:00:32]}  Qe6 {[%clk 0:00:08]} 37. Qg7+ {[%clk 0:00:29]}  Kc6 {[%clk 0:00:08]} 38. Rxc3+ {[%clk 0:00:29]}  Nc4 {[%clk 0:00:08]} 39. a4 {[%clk 0:00:25]}  Kb6 {[%clk 0:00:05]} 40. axb5 {[%clk 0:00:23]}  axb5 {[%clk 0:00:06]} 41. Ra1 {[%clk 0:00:21]}  Rd7 {[%clk 0:00:06]} 42. Qg3 {[%clk 0:00:18]}  Qd5 {[%clk 0:00:07]} 43. Rb1 {[%clk 0:00:15]}  Qc5 {[%clk 0:00:05]} 44. Qd3 {[%clk 0:00:12]}  Rg7 {[%clk 0:00:03]} 45. d7 {[%clk 0:00:10]}  Rd8 {[%clk 0:00:01]} 46. Rxc4 {[%clk 0:00:09]} 1-0


[Site "https://www.chess.com"]

[Event "Titled Tuesday Blitz February 07 Early 2023"]
[White "Shubenkova, Veronika"]
[Black "Vakhlamov, Igor L."]
[WhiteFideId "44124040"]
[BlackFideId "24126748"]
[WhiteElo "1960"]
[BlackElo "2413"]
[Result "0-1"]
[Round "04"]
[TimeControl "180+2"]
[Date "2023.02.07"]
[WhiteClock "0:01:02"]
[BlackClock "0:00:10"]

1. e4 {[%clk 0:03:00]}  c5 {[%clk 0:03:00]} 2. Nc3 {[%clk 0:03:00]}  e6 {[%clk 0:03:00]} 3. g3 {[%clk 0:02:59]}  d5 {[%clk 0:02:59]} 4. d3 {[%clk 0:03:00]}  Nf6 {[%clk 0:02:54]} 5. Bg2 {[%clk 0:02:59]}  dxe4 {[%clk 0:02:54]} 6. Nxe4 {[%clk 0:02:58]}  Nxe4 {[%clk 0:02:52]} 7. Bxe4 {[%clk 0:02:58]}  Be7 {[%clk 0:02:50]} 8. Ne2 {[%clk 0:02:58]}  O-O {[%clk 0:02:50]} 9. O-O {[%clk 0:02:58]}  Nc6 {[%clk 0:02:51]} 10. b3 {[%clk 0:02:57]}  Bf6 {[%clk 0:02:50]} 11. Rb1 {[%clk 0:02:57]}  Nd4 {[%clk 0:02:50]} 12. Bb2 {[%clk 0:02:56]}  Rb8 {[%clk 0:02:50]} 13. Nxd4 {[%clk 0:02:56]}  cxd4 {[%clk 0:02:51]} 14. Qd2 {[%clk 0:02:54]}  b5 {[%clk 0:02:49]} 15. Ba3 {[%clk 0:02:53]}  Re8 {[%clk 0:02:48]} 16. f4 {[%clk 0:02:48]}  Bb7 {[%clk 0:02:47]} 17. Rbe1 {[%clk 0:02:46]}  Qc7 {[%clk 0:02:41]} 18. Qg2 {[%clk 0:02:42]}  a5 {[%clk 0:02:33]} 19. Bb2 {[%clk 0:02:40]}  b4 {[%clk 0:02:28]} 20. Rf2 {[%clk 0:02:38]}  Rec8 {[%clk 0:02:22]} 21. Ree2 {[%clk 0:02:34]}  a4 {[%clk 0:02:19]} 22. g4 {[%clk 0:02:27]}  g6 {[%clk 0:02:00]} 23. f5 {[%clk 0:02:21]}  exf5 {[%clk 0:01:51]} 24. gxf5 {[%clk 0:02:21]}  Bxe4 {[%clk 0:01:06]} 25. Rxe4 {[%clk 0:02:19]}  Be5 {[%clk 0:00:50]} 26. fxg6 {[%clk 0:02:17]}  hxg6 {[%clk 0:00:51]} 27. Bxd4 {[%clk 0:02:17]}  Bxd4 {[%clk 0:00:51]} 28. Rxd4 {[%clk 0:02:17]}  Qe5 {[%clk 0:00:44]} 29. Re4 {[%clk 0:02:13]}  Qa1+ {[%clk 0:00:44]} 30. Rf1 {[%clk 0:02:13]}  Qxa2 {[%clk 0:00:40]} 31. Qf3 {[%clk 0:02:13]}  Rc7 {[%clk 0:00:33]} 32. bxa4 {[%clk 0:02:10]}  Qxc2 {[%clk 0:00:32]} 33. Rc4 {[%clk 0:02:07]}  Rxc4 {[%clk 0:00:17]} 34. Qxf7+ {[%clk 0:02:06]}  Kh8 {[%clk 0:00:18]} 35. dxc4 {[%clk 0:02:05]}  Qe4 {[%clk 0:00:08]} 36. Qf6+ {[%clk 0:01:57]}  Kh7 {[%clk 0:00:08]} 37. Qf7+ {[%clk 0:01:46]}  Kh8 {[%clk 0:00:08]} 38. Qd5 {[%clk 0:01:45]}  Qg4+ {[%clk 0:00:06]} 39. Kh1 {[%clk 0:01:44]}  Re8 {[%clk 0:00:05]} 40. Qb7 {[%clk 0:01:41]}  Qxc4 {[%clk 0:00:04]} 41. Qf3 {[%clk 0:01:36]}  Qe4 {[%clk 0:00:04]} 42. a5 {[%clk 0:01:33]}  Qxf3+ {[%clk 0:00:04]} 43. Rxf3 {[%clk 0:01:33]}  Ra8 {[%clk 0:00:05]} 44. Rb3 {[%clk 0:01:33]}  Rxa5 {[%clk 0:00:05]} 45. Rxb4 {[%clk 0:01:33]}  Kg7 {[%clk 0:00:06]} 46. Rb6 {[%clk 0:01:32]}  Kh6 {[%clk 0:00:07]} 47. Kg2 {[%clk 0:01:33]}  Kh5 {[%clk 0:00:07]} 48. Rb8 {[%clk 0:01:31]}  Ra2+ {[%clk 0:00:07]} 49. Kg3 {[%clk 0:01:31]}  Ra3+ {[%clk 0:00:08]} 50. Kg2 {[%clk 0:01:28]}  g5 {[%clk 0:00:08]} 51. Rb6 {[%clk 0:01:27]}  Kh4 {[%clk 0:00:08]} 52. Rh6+ {[%clk 0:01:25]}  Kg4 {[%clk 0:00:08]} 53. h3+ {[%clk 0:01:23]}  Kf5 {[%clk 0:00:07]} 54. Rb6 {[%clk 0:01:23]}  Ra2+ {[%clk 0:00:07]} 55. Kg3 {[%clk 0:01:23]}  Ra3+ {[%clk 0:00:08]} 56. Kg2 {[%clk 0:01:23]}  Ra4 {[%clk 0:00:08]} 57. Rb5+ {[%clk 0:01:22]}  Kf4 {[%clk 0:00:08]} 58. Rb2 {[%clk 0:01:22]}  Ra3 {[%clk 0:00:07]} 59. Rf2+ {[%clk 0:01:22]}  Ke5 {[%clk 0:00:08]} 60. Re2+ {[%clk 0:01:22]}  Kf5 {[%clk 0:00:08]} 61. Rf2+ {[%clk 0:01:23]}  Kg6 {[%clk 0:00:09]} 62. Kh2 {[%clk 0:01:22]}  Kh5 {[%clk 0:00:09]} 63. Rg2 {[%clk 0:01:23]}  Ra4 {[%clk 0:00:09]} 64. Kg3 {[%clk 0:01:21]}  Rb4 {[%clk 0:00:09]} 65. Kh2 {[%clk 0:01:20]}  Rc4 {[%clk 0:00:09]} 66. Kg3 {[%clk 0:01:19]}  Rd4 {[%clk 0:00:10]} 67. Kh2 {[%clk 0:01:19]}  Kh4 {[%clk 0:00:10]} 68. Re2 {[%clk 0:01:16]}  Rf4 {[%clk 0:00:10]} 69. Rg2 {[%clk 0:01:16]}  Rf3 {[%clk 0:00:10]} 70. Rg4+ {[%clk 0:01:16]}  Kh5 {[%clk 0:00:10]} 71. Kg2 {[%clk 0:01:16]}  Ra3 {[%clk 0:00:10]} 72. Kh2 {[%clk 0:01:16]}  Ra2+ {[%clk 0:00:10]} 73. Rg2 {[%clk 0:01:16]}  Ra4 {[%clk 0:00:10]} 74. Rf2 {[%clk 0:01:16]}  Kh4 {[%clk 0:00:11]} 75. Rg2 {[%clk 0:01:16]}  Rb4 {[%clk 0:00:11]} 76. Rf2 {[%clk 0:01:16]}  Rb3 {[%clk 0:00:11]} 77. Rg2 {[%clk 0:01:17]}  Rxh3+ {[%clk 0:00:11]} 78. Kg1 {[%clk 0:01:17]}  Rg3 {[%clk 0:00:11]} 79. Kf2 {[%clk 0:01:06]}  Rxg2+ {[%clk 0:00:11]} 80. Kxg2 {[%clk 0:01:06]}  Kg4 {[%clk 0:00:12]} 81. Kh2 {[%clk 0:01:06]}  Kf3 {[%clk 0:00:12]} 82. Kh3 {[%clk 0:01:05]}  g4+ {[%clk 0:00:10]} 83. Kh2 {[%clk 0:01:06]}  Kf2 {[%clk 0:00:07]} 84. Kh1 {[%clk 0:01:05]}  Kg3 {[%clk 0:00:07]} 85. Kg1 {[%clk 0:01:02]}  Kh3 {[%clk 0:00:08]} 86. Kh1 {[%clk 0:01:02]}  g3 {[%clk 0:00:08]} 87. Kg1 {[%clk 0:01:02]}  g2 {[%clk 0:00:09]} 88. Kf2 {[%clk 0:01:02]}  Kh2 {[%clk 0:00:10]} 0-1


[Site "https://www.chess.com"]